bitfinex-derivatives/quotes_ETHF0:USTF0_20250116
["timestamp","ask_amount","ask_price","bid_price","bid_amount"]
[1737058103363,4.6735961,3344.2,3343.7,3.55059293]
[1737058103555,0.59813,3344.3,3344.1,3.2078]
[1737058103868,5.82195711,3344.4,3344.3,0.59812]
[1737058104068,5.82195711,3344.4,3344.3,0.94091293]
[1737058104269,5.82195711,3344.4,3344.3,0.9406273]
[1737058104967,0.59807,3344.6,3344.3,0.3425073]
[1737058105167,0.59807,3344.6,3344.2,0.8268]
[1737058105168,0.59807,3344.6,3344.5,0.59808]
[1737058106367,0.5981,3344.5,3344.4,0.59808]
[1737058106567,0.59808,3344.6,3344.5,0.59807]
[1737058106871,0.59808,3344.6,3344.5,3.80587]
[1737058107166,0.59806,3344.7,3344.6,0.59804]
[1737058107367,0.59806,3344.7,3344.6,1.77700848]
[1737058107870,2.26891631,3344.9,3344.6,1.17896848]
[1737058108072,0.59805,3344.8,3344.7,0.34226848]
[1737058108470,2.26891631,3344.9,3344.7,0.34218063]
[1737058108665,0.59805,3344.7,3344.6,1.43475]
[1737058109466,0.59804,3344.8,3344.7,0.59803]
[1737058109660,0.59801,3344.9,3344.8,0.59801]
[1737058109865,1.6661,3345.0,3344.6,0.8367]
[1737058110067,2.2641,3345.0,3344.9,0.59801]
[1737058110371,4.69382967,3345.2,3344.6,0.8367]
[1737058110575,5.29178967,3345.2,3345.1,0.59797]
[1737058110876,4.69382967,3345.2,3345.1,0.59797]
[1737058111065,4.69382967,3345.2,3345.1,0.94008446]
[1737058111259,0.59786,3345.8,3345.1,0.94008446]
[1737058111260,4.69382967,3345.6,3345.1,0.94008446]
[1737058111475,4.69382967,3345.6,3345.5,0.5979]
[1737058111666,4.69382967,3345.6,3345.5,0.94001446]
[1737058111861,4.69382967,3345.6,3345.5,1.74751446]
[1737058112465,4.69382967,3345.6,3345.5,2.54251446]
[1737058112670,0.59777,3346.3,3346.2,0.59778]
[1737058112869,0.59777,3346.3,3346.2,0.93935957]
[1737058113074,0.59777,3346.3,3346.2,0.59778]
[1737058113274,1.6389,3346.4,3345.7,3.2078]
[1737058113470,1.6389,3346.4,3345.4,1.193]
[1737058113471,0.5979,3345.5,3345.4,1.193]
[1737058113673,2.26891631,3345.5,3344.9,4.034]
[1737058113863,1.49459,3345.9,3344.7,9.29085251]
[1737058113864,2.26891631,3345.2,3345.0,9.29085251]
[1737058114069,0.59797,3345.1,3345.0,9.29085251]
[1737058114767,2.86688631,3345.2,3345.1,0.59797]
[1737058115571,1.5794,3345.4,3344.9,3.2078]
[1737058115769,1.5794,3345.4,3345.0,0.59798]
[1737058115770,0.59798,3345.1,3345.0,0.59798]
[1737058115972,0.59795,3345.3,3345.1,0.59797]
[1737058116176,0.59797,3345.2,3345.0,0.59798]
[1737058116373,1.5794,3345.4,3344.9,3.2078]
[1737058116578,0.59798,3345.1,3345.0,0.59799]
[1737058116778,0.59797,3345.2,3345.1,0.59797]
[1737058116974,1.5794,3345.4,3345.1,0.59797]
[1737058117172,0.59795,3345.3,3344.9,3.2078]
[1737058117369,2.26891631,3345.2,3344.9,3.2078]
[1737058117572,0.59797,3345.1,3345.0,0.59799]
[1737058117770,2.26891631,3345.2,3344.6,0.8477]
[1737058118074,0.59796,3345.2,3345.1,0.59797]
[1737058118272,0.59798,3345.1,3345.0,0.59798]
[1737058118575,0.59797,3345.2,3345.0,0.59798]
[1737058118875,1.5794,3345.4,3345.0,0.59798]
[1737058119176,0.59798,3345.1,3345.0,0.59798]
[1737058119375,0.59797,3345.2,3345.1,0.59797]
[1737058120277,0.59795,3345.3,3345.2,0.59795]
[1737058120774,1.5794,3345.4,3344.9,3.2078]
[1737058121280,4.0103,3345.7,3345.4,0.59791]
[1737058121679,0.59789,3345.6,3345.4,0.59791]
[1737058122076,0.59795,3345.3,3345.1,0.59796]
[1737058122567,0.8273,3345.2,3344.9,3.2078]
[1737058122769,3.09621631,3345.2,3344.9,3.2078]
[1737058123075,0.59799,3345.0,3344.9,3.2078]
[1737058123481,0.59813,3344.3,3344.1,0.96415325]
[1737058123681,2.86702631,3344.4,3344.2,0.59813]
[1737058123875,3.2078,3344.9,3344.1,0.36601325]
[1737058123876,2.26891631,3344.7,3344.1,0.36601325]
[1737058124178,2.26891631,3344.7,3344.4,0.59809]
[1737058124179,0.59808,3344.6,3344.4,0.59809]
[1737058124372,0.59808,3344.5,3344.4,0.59809]
[1737058124573,0.8273,3344.6,3344.5,0.59808]
[1737058124775,0.59802,3344.9,3344.5,0.59808]
[1737058124969,0.59802,3344.9,3344.8,0.59803]
[1737058125173,2.26891631,3344.9,3344.4,3.2078]
[1737058125375,0.59804,3344.8,3344.6,0.59805]
[1737058125575,0.59805,3344.7,3344.4,3.2078]
[1737058125885,0.59805,3344.7,3344.6,0.59806]
[1737058126383,0.59807,3344.6,3344.4,3.80589]
[1737058126587,2.26891631,3344.5,3344.4,3.80589]
[1737058126882,2.86695631,3344.8,3344.6,0.59805]
[1737058127091,0.59808,3344.5,3344.4,3.2078]
[1737058127382,2.86699631,3344.5,3344.4,3.2078]
[1737058127984,2.26891631,3344.8,3344.4,3.2078]
[1737058128283,2.26891631,3344.8,3344.5,0.59807]
[1737058128284,0.59807,3344.6,3344.5,0.59807]
[1737058128483,0.59808,3344.5,3344.4,3.2078]
[1737058129188,0.59808,3344.5,3344.4,3.8059]
[1737058129982,0.59808,3344.5,3344.4,3.2078]
[1737058130375,0.59808,3344.5,3344.1,41.16601325]
[1737058130376,2.26891631,3344.5,3344.1,41.16601325]
[1737058130581,2.26891631,3344.5,3344.1,41.76416325]
[1737058130582,0.59814,3344.2,3344.1,41.76416325]
[1737058130778,1.5922,3344.4,3344.2,0.59812]
[1737058130779,0.59813,3344.3,3344.2,0.59812]
[1737058131187,0.59813,3344.3,3344.2,0.93978552]
[1737058131880,2.19031,3344.4,3344.3,0.59812]
[1737058132080,2.19031,3344.4,3344.3,0.93978552]
[1737058132886,0.7847,3344.4,3344.3,0.93978552]
[1737058133186,1.3828,3344.4,3344.3,0.93978552]
[1737058133779,1.3828,3344.4,3344.3,0.94013338]
[1737058133986,0.7588,3344.7,3344.3,0.34201338]
[1737058134289,0.8163,3344.9,3344.5,3.2078]
[1737058134478,1.42707,3345.2,3345.1,0.59797]
[1737058135584,0.59801,3345.0,3344.9,0.59799]
[1737058135783,0.59801,3345.0,3344.9,0.93983631]
[1737058137001,3.70029631,3345.1,3345.0,0.59799]
[1737058137183,3.70029631,3345.1,3345.0,0.93983631]
[1737058139290,3.70029631,3345.1,3345.0,0.93980862]
[1737058141893,3.10231631,3345.1,3345.0,0.93980862]
[1737058142094,2.26891631,3345.1,3345.0,0.93980862]
[1737058142394,3.08521631,3345.4,3345.3,0.59794]
[1737058142596,1.42156,3345.8,3345.3,3.54951461]
[1737058142789,4.69382967,3345.9,3345.8,0.59785]
[1737058142986,1.37362,3346.0,3345.8,0.34168499]
[1737058143190,1.37362,3346.0,3345.9,0.93940922]
[1737058143697,0.7758,3346.0,3345.9,0.93940922]
[1737058144192,2.26891631,3346.3,3345.9,0.34157922]
[1737058144392,1.5038,3346.5,3346.0,0.34157922]
[1737058144597,2.26891631,3346.0,3345.7,3.2078]
[1737058144799,1.5282,3345.9,3345.8,0.93963092]
[1737058146392,2.26891631,3346.0,3345.8,0.34178092]
[1737058146689,3.86321631,3346.3,3346.2,0.59776]
[1737058147095,4.46097631,3346.3,3346.2,0.59776]
[1737058147998,3.86321631,3346.3,3346.2,0.59776]
[1737058149595,3.09481631,3346.3,3346.2,0.59776]
[1737058150094,2.26891631,3346.6,3346.1,3.2078]
[1737058150300,1.5791,3346.7,3346.5,3.2078]
[1737058150489,0.7947,3346.7,3346.6,0.59771]
[1737058150691,4.68453676,3346.8,3346.7,0.59769]
[1737058151293,4.68453676,3347.3,3347.2,0.5976]
[1737058152399,5.28212676,3347.3,3347.1,0.5976]
[1737058152592,0.59761,3347.2,3347.1,0.59761]
[1737058152799,2.86650631,3347.3,3347.1,0.59761]
[1737058152996,0.5976,3347.2,3347.1,0.59761]
[1737058153193,2.26891631,3347.3,3347.0,3.2078]
[1737058153397,0.59757,3347.4,3347.3,0.59757]
[1737058153997,0.59759,3347.3,3347.2,0.59759]
[1737058155001,2.26891631,3347.6,3347.0,3.2078]
[1737058155196,0.59756,3347.5,3347.1,0.59762]
[1737058155493,0.7844,3347.7,3347.6,0.59753]
[1737058157399,6.95345307,3348.3,3347.5,3.2078]
[1737058157602,0.59744,3348.1,3347.9,0.59747]
[1737058157802,2.17353,3348.2,3348.0,0.59745]
[1737058157995,0.59747,3348.0,3347.8,0.59748]
[1737058158398,0.59747,3348.0,3347.5,3.2078]
[1737058158399,0.59747,3348.0,3347.9,0.59747]
[1737058159206,0.59748,3347.9,3347.7,0.59749]
[1737058159397,0.5975,3347.8,3347.6,0.59751]
[1737058159598,0.59752,3347.7,3347.5,3.80534]
[1737058159900,2.26891631,3348.0,3347.6,0.59752]
[1737058160095,0.59751,3347.7,3347.5,3.2078]
[1737058160312,0.5975,3347.8,3347.6,0.59752]
[1737058161196,0.59749,3347.9,3347.5,3.2078]
[1737058161507,0.59749,3347.9,3347.6,0.59752]
[1737058161802,0.59749,3347.9,3347.5,3.2078]
[1737058161803,0.59749,3347.9,3347.7,0.5975]
[1737058162906,1.5761,3348.2,3347.9,0.59746]
[1737058163303,1.5761,3348.2,3347.5,3.2078]
[1737058163304,0.59745,3348.1,3347.5,3.2078]
[1737058163503,0.59745,3348.1,3347.9,0.59747]
[1737058163903,1.5761,3348.2,3347.5,3.2078]
[1737058164205,0.59749,3347.9,3347.7,0.5975]
[1737058164501,0.59749,3347.8,3347.7,0.5975]
[1737058164699,0.59749,3347.9,3347.7,0.5975]
[1737058165101,0.59749,3347.8,3347.7,0.5975]
[1737058166902,2.26891631,3348.0,3347.5,3.2078]
[1737058166903,0.59753,3347.6,3347.5,3.80533]
[1737058167903,1.49363,3348.1,3347.5,3.2078]
[1737058168098,1.5761,3348.2,3347.5,3.2078]
[1737058168303,0.59746,3348.1,3348.0,0.59744]
[1737058169620,0.59744,3348.1,3348.0,0.59744]
[1737058169816,2.17353,3348.2,3348.1,0.59744]
[1737058170108,1.5761,3348.2,3347.8,0.823]
[1737058170306,2.26891631,3348.1,3347.7,40.8]
[1737058170511,0.59749,3347.9,3347.8,0.59747]
[1737058170808,0.59749,3347.8,3347.7,40.8]
[1737058171010,0.59753,3347.6,3347.5,3.80533]
[1737058171204,0.59753,3347.6,3347.5,3.2078]
[1737058171708,0.5976,3347.2,3347.1,3.2078]
[1737058172301,0.59765,3346.9,3346.8,40.8]
[1737058172511,0.59771,3346.7,3346.6,0.59771]
[1737058172712,0.59771,3346.7,3346.6,0.34018749]
[1737058172912,0.59771,3346.7,3346.6,41.3977]
[1737058173509,0.59771,3346.7,3346.6,0.5977]
[1737058173906,0.59771,3346.6,3346.5,3.80551]
[1737058174113,0.59771,3346.7,3346.6,0.5977]
[1737058175900,0.59762,3347.2,3347.1,0.5976]
[1737058177113,0.59759,3347.3,3347.2,0.59758]
[1737058177411,0.7772,3347.4,3347.3,0.59758]
[1737058177412,1.37478,3347.4,3347.3,0.59758]
[1737058177808,0.59758,3347.4,3347.3,41.7382332]
[1737058178004,1.38235,3347.5,3347.4,0.59756]
[1737058178204,0.7848,3347.5,3347.4,0.93834499]
[1737058178408,0.59754,3347.6,3347.5,0.59752]
[1737058178709,0.59754,3347.6,3347.5,0.93830499]
[1737058179305,0.59752,3347.7,3347.6,0.59751]
[1737058179507,1.6459,3347.8,3347.5,0.59754]
[1737058179704,0.59753,3347.6,3347.5,0.59754]
[1737058179904,0.59753,3347.6,3347.5,0.93849147]
[1737058180110,1.6459,3347.8,3347.5,0.34095147]
[1737058180305,0.59752,3347.7,3347.6,0.34095147]
[1737058180814,0.59753,3347.6,3347.5,0.59753]
[1737058181009,0.59753,3347.6,3347.5,0.93865791]
[1737058182208,0.59753,3347.6,3347.5,0.34112791]
[1737058182710,0.59753,3347.6,3347.5,0.93867791]
[1737058183111,0.59753,3347.6,3347.5,0.34112791]
[1737058183306,2.86644631,3347.6,3347.5,0.34112791]
[1737058184311,0.5977,3346.7,3346.6,0.5977]
[1737058184509,4.53783262,3347.6,3346.5,3.80552]
[1737058184510,2.26891631,3347.0,3346.5,3.80552]
[1737058184707,0.59771,3346.6,3346.5,3.2078]
[1737058185014,0.59771,3346.6,3346.5,3.80552]
[1737058185208,0.5977,3346.7,3346.6,0.59769]
[1737058186312,0.59765,3347.0,3346.9,0.59764]
[1737058186915,0.59765,3347.0,3346.5,4.70209]
[1737058186916,0.59763,3347.1,3347.0,0.59764]
[1737058188215,1.6632,3347.3,3346.9,3.2078]
[1737058188512,3.76296631,3347.1,3346.4,3.9761]
[1737058188709,0.59771,3346.6,3346.5,0.59771]
[1737058189015,0.59771,3346.6,3346.4,3.9761]
[1737058189016,0.59772,3346.5,3346.4,4.57384]
[1737058189216,0.59772,3346.5,3346.4,3.9761]
[1737058189409,0.59772,3346.5,3346.4,4.57384]
[1737058189912,2.86663631,3346.5,3346.4,3.9761]
[1737058190414,0.59772,3346.5,3346.4,4.57384]
[1737058190816,0.59772,3346.5,3346.4,3.9761]
[1737058191512,1.6107,3346.7,3346.4,3.9761]
[1737058191815,1.3924,3346.7,3346.6,0.59771]
[1737058193316,0.59772,3346.6,3346.5,0.59771]
[1737058195422,0.7947,3346.7,3346.4,3.9761]
[1737058195617,0.59772,3346.5,3346.4,4.57383]
[1737058196017,2.86663631,3346.5,3346.4,3.2078]
[1737058196216,1.49436,3346.4,3345.9,3.2078]
[1737058196418,2.86672631,3346.0,3345.9,3.2078]
[1737058196718,2.86672631,3346.0,3345.9,3.80563]
[1737058197114,2.86672631,3346.0,3345.9,3.2078]
[1737058198626,2.86672631,3346.0,3345.9,3.80563]
[1737058199516,2.86672631,3346.0,3345.9,3.2078]
[1737058200220,2.86672631,3346.0,3345.9,3.80563]
[1737058200413,2.86672631,3346.0,3345.9,3.2078]
[1737058202728,2.26891631,3346.0,3345.8,0.59784]
[1737058202928,1.40303,3345.9,3345.8,0.59784]
[1737058203229,0.59787,3345.8,3345.7,0.59785]
[1737058203413,0.59789,3345.7,3345.6,0.59788]
[1737058203618,0.59789,3345.7,3345.5,44.0078]
[1737058203619,2.26891631,3345.7,3345.5,44.0078]
[1737058203823,0.59789,3345.6,3345.5,3.2078]
[1737058204029,0.59797,3345.1,3345.0,3.2078]
[1737058204229,0.59799,3345.0,3344.9,0.598]
[1737058204928,0.59799,3345.0,3344.8,45.40564675]
[1737058204929,0.59797,3345.2,3345.1,0.59796]
[1737058205330,1.36667,3345.2,3345.1,0.59796]
[1737058206327,0.7894,3345.3,3345.2,0.59796]
[1737058206937,1.38734,3345.3,3345.2,0.59796]
[1737058207933,1.3666,3345.7,3345.6,0.59789]
[1737058208631,1.3666,3345.7,3345.6,41.39789]
[1737058208836,0.5979,3345.5,3345.4,3.80571]
[1737058209038,2.86681631,3345.5,3345.4,3.80571]
[1737058209233,2.26891631,3345.5,3345.4,44.60571]
[1737058209534,1.36658,3345.7,3345.6,0.59789]
[1737058209737,0.7687,3345.7,3345.6,0.59789]
[1737058209937,0.822,3345.9,3345.8,0.59785]
[1737058210640,0.8179,3346.2,3346.1,0.5978]
[1737058211141,3.50157486,3346.4,3346.3,0.59776]
[1737058211434,3.50157486,3346.4,3346.3,4.99756]
[1737058211830,4.09919486,3347.1,3347.0,0.59764]
[1737058212848,3.50157486,3347.1,3347.0,0.59764]
[1737058213048,4.09919486,3347.1,3347.0,0.59764]
[1737058213252,0.59762,3347.1,3347.0,0.59764]
[1737058214546,1.5838,3347.2,3347.0,0.59764]
[1737058214742,1.5838,3347.2,3346.7,3.2078]
[1737058214940,2.18141,3347.2,3347.1,0.59762]
[1737058215146,1.5838,3347.2,3346.7,3.2078]
[1737058215348,0.59763,3347.1,3347.0,0.59763]
[1737058216339,1.5838,3347.2,3346.7,3.2078]
[1737058216543,0.59763,3347.1,3347.0,0.59763]
[1737058216943,1.5838,3347.2,3346.7,3.2078]
[1737058217144,0.59763,3347.1,3347.0,0.59762]
[1737058217647,0.59767,3346.9,3346.8,0.59765]
[1737058219450,0.59767,3346.8,3346.7,3.2078]
[1737058219748,0.59776,3346.3,3346.2,3.2078]
[1737058219947,2.86667631,3346.3,3346.2,3.2078]
[1737058223047,2.26891631,3346.3,3346.2,3.80558]
[1737058223243,0.59775,3346.4,3346.3,0.59776]
[1737058223549,2.22453,3346.5,3346.4,0.59774]
[1737058223747,0.59775,3346.4,3346.3,0.59775]
[1737058224046,0.59776,3346.3,3346.2,3.2078]
[1737058224253,0.59775,3346.4,3346.3,0.59776]
[1737058225145,2.26891631,3346.6,3346.2,3.2078]
[1737058225349,2.1686,3346.7,3346.2,3.2078]
[1737058225652,2.1686,3346.7,3346.6,0.59771]
[1737058225953,2.16859,3346.7,3346.6,0.59771]
[1737058226148,0.59771,3346.6,3346.5,0.59772]
[1737058226855,2.1686,3346.7,3346.6,0.59771]
[1737058227350,1.5709,3346.7,3346.3,41.602]
[1737058227552,0.59773,3346.5,3346.4,0.59774]
[1737058227754,0.59771,3346.6,3346.5,0.59772]
[1737058227950,1.5709,3346.7,3346.3,41.602]
[1737058228254,2.26891631,3346.6,3346.3,41.602]
[1737058228454,0.59773,3346.5,3346.4,0.59773]
[1737058229047,2.26891631,3346.6,3346.3,1.39975]
[1737058229250,2.26891631,3346.6,3346.3,0.802]
[1737058229449,2.86662631,3346.6,3346.5,0.59772]
[1737058229956,0.59774,3346.5,3346.4,0.59774]
[1737058231053,0.59774,3346.5,3346.3,0.802]
[1737058231054,0.59774,3346.4,3346.3,1.39975]
[1737058231254,0.59776,3346.3,3346.2,3.80557]
[1737058231463,2.86667631,3346.3,3346.2,3.2078]
[1737058231954,2.86667631,3346.3,3345.8,3.2078]
[1737058231955,0.59783,3345.9,3345.8,3.2078]
[1737058232261,1.49445,3346.2,3345.4,7.81344675]
[1737058232262,2.26891631,3346.0,3345.4,7.81344675]
[1737058232455,2.86681631,3345.5,3345.4,4.60564675]
[1737058233152,2.86681631,3345.5,3344.9,44.0078]
[1737058233153,6.97149631,3345.5,3344.9,44.0078]
[1737058233362,2.86690631,3345.0,3344.9,3.2078]
[1737058234556,2.86690631,3345.0,3344.6,41.39805]
[1737058234746,0.59808,3344.5,3344.4,3.80588]
[1737058235252,0.59808,3344.5,3344.4,3.2078]
[1737058236155,2.26891631,3344.7,3343.9,40.8]
[1737058236361,2.26891631,3344.2,3343.9,0.59818]
[1737058236658,2.26891631,3344.2,3343.8,0.59819]
[1737058236847,0.59821,3343.8,3343.7,0.59822]
[1737058237452,0.59821,3343.8,3343.5,6.16369837]
[1737058237453,0.59824,3343.6,3343.5,6.39589675]
[1737058237653,2.26891631,3343.6,3343.5,1.79025]
[1737058237851,2.86715631,3343.6,3343.5,1.79025]
[1737058238257,2.86715631,3343.6,3343.5,1.192]
[1737058238463,2.26891631,3343.6,3343.5,1.79026]
[1737058239361,2.26891631,3343.9,3343.5,1.192]
[1737058239663,2.86705631,3344.2,3344.1,0.59815]
[1737058239866,2.26891631,3344.2,3344.1,0.59815]
[1737058240162,0.59811,3344.4,3343.8,3.2078]
[1737058240464,3.80591631,3344.5,3344.2,0.59813]
[1737058240762,0.59812,3344.3,3344.2,0.59813]
[1737058240960,3.80591631,3344.5,3344.3,0.59812]
[1737058241153,4.40400631,3344.5,3344.3,0.59811]
[1737058241356,3.80591631,3344.5,3344.4,0.5981]
[1737058241658,3.80591631,3344.5,3344.1,40.8]
[1737058241963,3.80591631,3344.5,3344.4,0.5981]
[1737058242371,3.2078,3344.9,3344.1,40.8]
[1737058242660,0.59805,3344.7,3344.5,0.59807]
[1737058243064,2.26891631,3344.8,3344.2,3.2078]
[1737058243253,2.26891631,3344.4,3344.3,0.59811]
[1737058243758,2.26891631,3344.4,3344.3,0.59812]
[1737058244473,2.86698631,3344.6,3344.4,0.59809]
[1737058244655,2.26891631,3344.6,3344.4,0.59809]
[1737058244955,0.59808,3344.5,3344.4,0.59809]
[1737058245363,0.59808,3344.5,3344.2,3.2078]
[1737058245562,0.59808,3344.5,3344.4,0.59808]
[1737058245864,0.59812,3344.3,3344.2,3.2078]
[1737058246060,2.26891631,3344.3,3343.8,3.2078]
[1737058246261,2.86710631,3343.9,3343.8,3.2078]
[1737058246562,2.86710631,3343.9,3343.8,3.80601]
[1737058246563,2.26891631,3343.9,3343.8,3.80601]
[1737058246762,1.4922,3344.4,3344.0,0.59816]
[1737058246763,2.86706631,3344.2,3344.0,0.59816]
[1737058247060,2.26891631,3344.2,3344.1,0.59815]
[1737058248456,3.2078,3344.9,3343.8,3.2078]
[1737058248656,1.3274,3345.0,3344.9,0.59801]
[1737058249564,4.19430631,3345.0,3344.6,3.2078]
[1737058249770,4.19430631,3345.0,3344.9,0.59801]
[1737058250461,4.19430631,3345.0,3344.6,3.2078]
[1737058250462,3.59631631,3345.0,3344.6,3.2078]
[1737058250770,0.59801,3344.9,3344.8,0.59802]
[1737058250962,3.59631631,3345.0,3344.5,1.192]
[1737058251158,2.26891631,3344.7,3344.5,1.192]
[1737058251459,2.86697631,3344.7,3344.5,0.59807]
[1737058251659,2.86697631,3344.7,3344.6,0.59806]
[1737058251865,2.26891631,3344.7,3344.6,0.59806]
[1737058252261,1.3274,3345.0,3344.6,3.2078]
[1737058252262,3.59631631,3345.0,3344.6,3.2078]
[1737058252465,0.6596,3345.0,3344.9,0.59801]
[1737058252663,5.47671631,3345.3,3344.6,3.2078]
[1737058252863,6.07466631,3345.3,3344.7,1.49509]
[1737058253064,6.07466631,3345.3,3345.1,0.59796]
[1737058253466,0.59796,3345.2,3345.1,0.59796]
[1737058253666,6.07466631,3345.3,3345.2,0.59796]
[1737058253870,5.47671631,3345.3,3344.7,40.8]
[1737058254272,2.26891631,3345.0,3344.7,40.8]
[1737058254567,0.59802,3344.9,3344.8,0.59802]
[1737058254762,2.26891631,3345.0,3344.6,3.2078]
[1737058254962,0.59808,3344.6,3344.5,1.79007]
[1737058256272,2.26891631,3344.7,3344.5,1.192]
[1737058256474,0.59806,3344.6,3344.5,1.79008]
[1737058256971,0.59806,3344.6,3344.5,1.192]
[1737058257376,2.26891631,3344.7,3344.4,0.59809]
[1737058257672,0.59805,3344.7,3344.6,0.59806]
[1737058257869,2.0241,3344.9,3344.1,4.3998]
[1737058258079,2.91980999,3345.2,3344.5,3.2078]
[1737058258267,0.7051,3345.1,3344.9,0.598]
[1737058258467,0.59799,3345.0,3344.9,0.598]
[1737058258667,0.7051,3345.1,3344.5,3.2078]
[1737058258870,0.7051,3345.1,3344.7,0.59804]
[1737058259075,0.7051,3345.1,3344.5,3.2078]
[1737058259272,0.59806,3344.6,3344.5,3.2078]
[1737058260073,0.6905,3344.7,3344.2,0.59813]
[1737058260280,0.6905,3344.7,3344.0,3.8812]
[1737058260281,3.60720999,3344.5,3344.3,0.59811]
[1737058260485,4.20529999,3344.5,3344.4,0.5981]
[1737058260669,0.6874,3344.5,3344.4,0.5981]
[1737058261074,0.6874,3344.5,3344.0,5.0732]
[1737058261271,0.59811,3344.4,3344.2,0.59813]
[1737058261578,0.59811,3344.4,3344.0,5.0732]
[1737058261579,0.59811,3344.4,3344.3,0.59812]
[1737058262177,1.28549,3344.5,3344.0,5.0732]
[1737058262373,1.28548,3344.5,3344.4,0.5981]
[1737058262772,0.5981,3344.4,3344.3,0.59811]
[1737058262976,1.2855,3344.5,3344.3,0.59811]
[1737058263181,1.2855,3344.5,3344.0,5.0732]
[1737058263374,0.59811,3344.4,3344.3,0.59811]
[1737058264881,0.6874,3344.5,3344.0,5.0732]
[1737058265076,0.59811,3344.4,3344.3,0.59811]
[1737058266984,0.6874,3344.5,3344.0,5.0732]
[1737058267186,0.59809,3344.5,3344.4,0.59809]
[1737058267382,0.59811,3344.4,3344.3,0.59811]
[1737058268294,0.59815,3344.1,3344.0,3.2078]
[1737058268881,0.59815,3344.1,3343.2,0.6807]
[1737058268882,0.5983,3343.3,3343.2,0.5983]
[1737058269085,0.59831,3343.2,3343.1,5.20395675]
[1737058269673,0.5983,3343.4,3343.3,0.59829]
[1737058269877,1.49564,3343.6,3343.1,4.60564675]
[1737058270186,0.59831,3343.2,3343.1,5.20396675]
[1737058270388,0.59831,3343.2,3343.1,0.59832]
[1737058271781,0.59828,3343.5,3343.4,0.59826]
[1737058272884,0.59828,3343.5,3343.4,1.27016]
[1737058273284,0.59828,3343.5,3343.4,0.6719]
[1737058274387,0.59828,3343.5,3343.4,1.27018]
[1737058275186,6.72584999,3343.7,3343.6,0.59824]
[1737058275379,3.80604,3343.7,3343.6,0.59824]
[1737058275585,0.59833,3343.2,3343.1,0.59832]
[1737058275889,0.59825,3343.6,3343.5,0.59824]
[1737058276793,0.59827,3343.5,3343.1,1.49584]
[1737058277289,5.11136999,3344.0,3343.1,2.68884]
[1737058277290,2.91980999,3343.7,3343.1,2.68884]
[1737058277489,0.59825,3343.6,3343.5,0.59825]
[1737058277691,2.91980999,3343.7,3343.1,2.68884]
[1737058277993,0.59825,3343.6,3343.5,0.59825]
[1737058278790,2.91980999,3343.7,3343.1,2.68884]
[1737058278996,0.59823,3343.7,3343.6,0.59824]
[1737058279192,0.59826,3343.5,3343.1,2.68884]
[1737058279495,0.59826,3343.5,3343.4,0.59828]
[1737058280396,0.59831,3343.3,3343.2,0.59829]
[1737058280694,2.26916355,3343.7,3343.3,0.59827]
[1737058280695,0.59829,3343.4,3343.3,0.59827]
[1737058284798,2.26916355,3343.7,3343.1,1.193]
[1737058285099,0.59821,3343.8,3343.7,0.59822]
[1737058285298,6.46683841,3344.0,3343.4,1.49566]
[1737058285496,4.09975486,3344.0,3343.9,0.59819]
[1737058285697,5.77073841,3344.0,3343.4,3.2078]
[1737058286002,2.86741355,3343.7,3343.6,0.59822]
[1737058286498,2.26916355,3343.7,3343.4,3.80607]
[1737058286696,0.59826,3343.5,3343.4,3.2078]
[1737058286890,1.49566,3343.6,3343.1,0.6597]
[1737058287094,5.47696355,3343.7,3342.9,4.60564675]
[1737058287095,0.59835,3343.0,3342.9,4.60564675]
[1737058287603,0.59839,3342.9,3342.8,0.59837]
[1737058287901,0.59839,3342.8,3342.7,5.20403675]
[1737058288092,0.59839,3342.8,3342.7,4.60564675]
[1737058288288,2.86755355,3342.8,3342.7,4.60564675]
[1737058288493,2.86755355,3342.8,3342.7,5.20404675]
[1737058288905,0.5984,3342.7,3342.6,1.94201]
[1737058290812,2.26916355,3342.8,3342.7,0.5984]
[1737058291011,0.59838,3342.9,3342.8,0.59839]
[1737058292107,3.2078,3343.3,3342.7,1.49602]
[1737058292314,3.8061,3343.3,3343.2,0.59831]
[1737058292812,6.07526355,3343.3,3343.2,41.39831]
[1737058293317,3.2078,3343.3,3343.2,41.39831]
[1737058293518,3.50157486,3343.5,3343.4,0.59828]
[1737058293817,3.50157486,3343.5,3342.9,3.2078]
[1737058294011,0.59833,3343.1,3343.0,41.39832]
[1737058294309,0.59835,3343.0,3342.9,3.80616]
[1737058294513,2.86751355,3343.0,3342.9,3.80616]
[1737058294814,2.86751355,3343.0,3342.9,3.2078]
[1737058295109,2.86751355,3343.0,3342.9,3.80617]
[1737058295316,2.86751355,3343.0,3342.9,0.59837]
[1737058296315,0.59839,3342.9,3342.8,0.59837]
[1737058297811,0.5984,3342.8,3342.7,0.59838]
[1737058299409,0.5984,3342.7,3342.6,1.942]
[1737058299610,2.86756355,3342.7,3342.6,1.942]
[1737058300215,2.26916355,3342.7,3342.6,1.942]
[1737058301207,0.59844,3342.6,3342.5,0.59842]
[1737058302510,5.47696355,3343.0,3342.4,3.2078]
[1737058302710,4.18807486,3343.2,3342.5,2.26916355]
[1737058303015,3.50157486,3343.2,3343.1,0.59833]
[1737058303310,3.50157486,3343.2,3343.1,1.79133]
[1737058303519,3.50157486,3343.2,3343.1,4.06049355]
[1737058303705,1.83987486,3343.2,3343.1,49.86049355]
[1737058303910,3.51720028,3343.9,3343.8,0.59821]
[1737058304111,3.51720028,3343.9,3343.8,3.80601]
[1737058304621,3.51720028,3343.9,3343.8,8.80601]
[1737058304812,4.68453676,3344.1,3343.8,8.2078]
[1737058305011,4.68453676,3344.1,3344.0,2.86733355]
[1737058305319,2.26916355,3344.9,3344.8,0.59803]